bitfinex/quotes_ETHUSD_20250620
["timestamp","ask_amount","ask_price","bid_price","bid_amount"]
[1750394138537,26.47662749,2515.6,2515.5,3.97521246]
[1750394138738,26.10575949,2515.6,2515.5,3.97521246]
[1750394138947,26.4766275,2515.6,2515.5,3.97521246]
[1750394140453,26.10575949,2515.6,2515.5,3.97521246]
[1750394140835,0.7639,2515.4,2515.3,3.97562544]
[1750394141161,26.94229549,2515.4,2515.3,3.97562544]
[1750394145450,19.97059595,2515.4,2515.3,3.97562544]
[1750394145631,26.94229549,2515.4,2515.3,3.97562544]
[1750394149551,10.0,2515.3,2515.2,3.97573485]
[1750394149707,10.0597,2515.3,2515.2,3.97573485]
[1750394149909,10.0597,2515.3,2514.6,0.0598]
[1750394149910,0.0597,2515.2,2514.6,0.7775]
[1750394150120,7.03139954,2514.7,2514.6,3.97677563]
[1750394150337,13.49639954,2514.7,2514.6,3.97677563]
[1750394151475,0.0597,2514.5,2514.4,3.97699995]
[1750394151626,0.0597,2514.5,2513.9,0.7835]
[1750394151627,16.97169954,2514.4,2513.9,0.7835]
[1750394151947,16.5247,2514.3,2514.2,3.97739175]
[1750394153166,23.49639954,2514.3,2514.2,3.97739175]
[1750394153748,23.43669954,2514.3,2514.2,3.97739175]
[1750394155534,16.465,2514.3,2514.2,4.77189175]
[1750394160822,16.465,2514.3,2514.2,3.97739175]
[1750394164366,16.5273,2514.3,2514.2,3.97739175]
[1750394165369,16.465,2514.3,2514.2,3.97739175]
[1750394165967,16.466,2514.3,2514.2,3.97739175]
[1750394166772,25.31952954,2514.3,2514.2,3.97739175]
[1750394171670,26.98652954,2514.3,2514.2,3.97739175]
[1750394171838,26.98652954,2514.3,2514.1,3.97748339]
[1750394172034,0.0623,2514.2,2514.1,3.97748339]
[1750394173672,0.0623,2514.1,2514.0,3.97770544]
[1750394173975,0.0623,2514.1,2513.6,0.7758]
[1750394173976,10.0623,2514.0,2513.9,3.97780726]
[1750394175294,10.0,2514.0,2513.8,3.977974]
[1750394175599,0.7907,2514.5,2514.1,3.97756652]
[1750394175780,10.0,2514.3,2514.2,3.97740832]
[1750394177066,1.667,2514.5,2514.4,3.97709195]
[1750394177308,18.133,2514.5,2514.4,3.97709195]
[1750394179607,18.50329689,2514.5,2514.4,3.97709195]
[1750394180663,18.50348901,2514.5,2514.4,3.97709195]
[1750394181293,18.50348947,2514.5,2514.4,3.97709195]
[1750394181599,18.50386956,2514.5,2514.4,3.97709195]
[1750394181922,10.0,2514.4,2514.2,3.97740832]
[1750394182208,16.83686956,2514.3,2514.2,3.97740832]
[1750394183596,16.83683382,2514.3,2514.2,3.97740832]
[1750394184281,16.466,2514.3,2514.2,3.97740832]
[1750394184704,16.466,2514.3,2514.2,4.03960832]
[1750394185006,16.465,2514.3,2514.2,4.03960832]
[1750394188135,16.465,2514.3,2514.2,3.97740832]
[1750394191411,18.3367,2514.3,2514.2,3.97740832]
[1750394191579,16.5235,2514.3,2514.2,3.97740832]
[1750394192532,16.465,2514.3,2514.2,3.97740832]
[1750394193032,16.5235,2514.3,2514.2,3.97740832]
[1750394193924,16.89430415,2514.3,2514.2,3.97740832]
[1750394194127,16.5235,2514.3,2514.2,3.97740832]
[1750394194543,16.89433898,2514.3,2514.2,3.97740832]
[1750394194842,0.0585,2514.2,2514.0,3.97765115]
[1750394195004,0.0585,2514.0,2513.9,3.9777607]
[1750394195326,8.1885,2514.0,2513.9,3.9777607]
[1750394197606,18.55926665,2514.0,2513.9,3.9777607]
[1750394198142,18.1885,2514.0,2513.9,3.9777607]
[1750394198322,18.55911566,2514.0,2513.9,3.9777607]
[1750394198631,21.30673044,2514.0,2513.9,3.9777607]
[1750394198801,21.30671264,2514.0,2513.9,3.9777607]
[1750394199313,28.27841218,2514.0,2513.9,3.9777607]
[1750394199536,28.27841638,2514.0,2513.9,3.9777607]
[1750394200351,28.27843211,2514.0,2513.9,3.9777607]
[1750394201149,28.27830597,2514.0,2513.9,3.9777607]
[1750394201445,28.27830273,2514.0,2513.9,3.9777607]
[1750394201649,28.27830174,2514.0,2513.9,3.9777607]
[1750394201846,28.27830187,2514.0,2513.9,3.9777607]
[1750394202211,10.0585,2513.9,2513.8,3.97804121]
[1750394202513,10.4290862,2513.9,2513.8,3.97804121]
[1750394202938,10.42908346,2513.9,2513.8,3.97804121]
[1750394203912,0.0585,2513.8,2513.7,3.97808975]
[1750394204159,6.5235,2513.8,2513.7,3.97808975]
[1750394205537,0.0585,2513.6,2513.5,3.97836585]
[1750394205760,10.0585,2513.5,2513.4,3.97857405]
[1750394205950,11.7245,2513.5,2513.4,3.97857405]
[1750394206989,0.0585,2513.4,2513.3,3.97871362]
[1750394207178,26.09450949,2513.4,2513.2,3.97892084]
[1750394207471,0.0585,2513.3,2513.2,3.97892084]
[1750394213381,0.0585,2513.3,2513.2,3.97899092]
[1750394213595,0.8196,2513.3,2513.2,3.97899092]
[1750394215098,13.35332995,2513.3,2513.0,3.97923524]
[1750394215259,13.43669954,2513.2,2513.0,3.97923524]
[1750394215459,0.0568,2513.1,2513.0,3.97923524]
[1750394217800,0.0568,2513.1,2513.0,3.9793076]
[1750394218099,13.43669954,2513.2,2512.8,3.97952902]
[1750394218340,1.7218,2513.1,2513.0,3.97922985]
[1750394218700,0.0568,2513.0,2512.9,3.97941092]
[1750394218921,16.5218,2513.0,2512.9,3.97941092]
[1750394220633,16.465,2513.0,2512.9,3.97941092]
[1750394220830,10.0,2513.0,2512.9,3.97941092]
[1750394221033,16.466,2513.0,2512.9,4.82301092]
[1750394223735,10.0,2513.0,2512.9,4.82301092]
[1750394223936,16.465,2513.0,2512.9,4.82301092]
[1750394224101,10.0,2513.0,2512.9,4.82301092]
[1750394224304,10.0,2513.0,2512.9,4.76091092]
[1750394224305,16.466,2513.0,2512.9,4.76091092]
[1750394226099,16.466,2513.0,2512.9,3.97941092]
[1750394226550,17.09705228,2513.0,2512.9,3.97941092]
[1750394227631,16.466,2513.0,2512.9,3.97941092]
[1750394230996,1.666,2513.1,2512.9,3.97941092]
[1750394231129,2.42575464,2513.4,2513.3,3.97883261]
[1750394231333,19.26102777,2513.4,2513.3,3.97883261]
[1750394231632,12.79602777,2513.4,2513.3,3.97883261]
[1750394231838,19.26102777,2513.4,2513.3,3.97883261]
[1750394232340,12.79602777,2513.4,2513.3,3.97883261]
[1750394232528,19.2610426,2513.4,2513.3,3.97883261]
[1750394232965,19.26104319,2513.4,2513.3,3.97883261]
[1750394233272,19.26104261,2513.4,2513.3,4.81493261]
[1750394233507,19.26104261,2513.4,2513.3,4.75283261]
[1750394233720,10.0,2513.3,2513.1,3.9790318]
[1750394233861,6.465,2513.2,2513.1,3.9790318]
[1750394234361,12.42575464,2513.4,2513.3,4.81123261]
[1750394234577,19.261425,2513.4,2513.3,4.74913261]
[1750394235517,19.261425,2513.4,2513.3,4.81123261]
[1750394235807,18.89075464,2513.4,2513.3,4.81123261]
[1750394236474,19.26154832,2513.4,2513.3,4.81123261]
[1750394236880,18.89075464,2513.4,2513.3,4.81123261]
[1750394239910,12.42575464,2513.4,2513.3,4.81123261]
[1750394240115,18.89075464,2513.4,2513.3,4.81123261]
[1750394240813,18.89075464,2513.4,2513.3,4.74913261]
[1750394241008,18.89075464,2513.4,2513.3,4.81123261]
[1750394242610,2.42575464,2513.4,2513.3,4.74913261]
[1750394242796,8.88975464,2513.4,2513.3,6.08177451]
[1750394243958,2.42575464,2513.4,2513.3,6.08177451]
[1750394245639,2.42575464,2513.4,2513.3,6.12155759]
[1750394246016,2.42575464,2513.4,2513.3,6.08177451]
[1750394248163,2.42575464,2513.4,2513.3,6.02547451]
[1750394248395,2.42575464,2513.4,2513.3,6.08177451]
[1750394248650,2.42575464,2513.4,2513.3,6.12155747]
[1750394249755,2.42575464,2513.4,2513.3,6.08177451]
[1750394251252,2.42575464,2513.4,2513.3,6.12155763]
[1750394251642,2.42575464,2513.4,2513.3,6.08177451]
[1750394258562,2.42575464,2513.4,2513.3,6.02547451]
[1750394258965,2.42575464,2513.4,2513.3,5.25517451]
[1750394260652,2.42575464,2513.4,2513.3,5.29495765]
[1750394261278,2.42575464,2513.4,2513.3,5.25517451]
[1750394261988,2.42575464,2513.4,2513.3,5.35125765]
[1750394262887,2.42575464,2513.4,2513.3,6.10675765]
[1750394263447,2.42575464,2513.4,2513.3,12.56775765]
[1750394263647,11.664,2513.9,2513.7,4.73366141]
[1750394263890,1.664,2513.9,2513.8,3.97804121]
[1750394264059,1.664,2513.9,2513.8,4.01781679]
[1750394264653,11.723,2514.3,2514.2,3.97740832]
[1750394264984,18.55474233,2514.3,2514.2,3.97740832]
[1750394265185,18.55475172,2514.3,2514.2,3.97740832]
[1750394265401,18.55475759,2514.3,2514.2,3.97740832]
[1750394265577,18.55475641,2514.3,2514.2,3.97740832]
[1750394265950,18.55475682,2514.3,2514.2,3.97740832]
[1750394266484,18.55475779,2514.3,2514.2,3.97740832]
[1750394266890,18.184,2514.3,2514.2,3.97740832]
[1750394267066,18.55481607,2514.3,2514.2,3.97740832]
[1750394267493,12.03481607,2514.3,2514.2,3.97740832]
[1750394267694,18.49581607,2514.3,2514.2,3.97740832]
[1750394268269,2.03481607,2514.3,2514.2,3.97740832]
[1750394268474,8.125,2514.3,2514.2,4.85478211]
[1750394268992,0.8522,2514.8,2514.7,3.97661748]
[1750394269204,19.34689856,2514.8,2514.7,3.97661748]
[1750394269358,19.34659165,2514.8,2514.7,3.97661748]
[1750394270101,19.34662327,2514.8,2514.7,3.97661748]
[1750394270810,19.34662355,2514.8,2514.7,3.97661748]
[1750394271160,19.34662362,2514.8,2514.7,3.97661748]
[1750394271357,12.8866251,2514.8,2514.7,3.97661748]
[1750394271588,12.0344251,2514.8,2514.7,3.97661748]
[1750394271912,1.664,2514.8,2514.7,4.7719532]
[1750394272201,8.124,2514.8,2514.7,4.81171481]
[1750394272360,1.664,2514.8,2514.7,4.81171613]
[1750394272560,1.664,2514.8,2514.7,4.7719532]
[1750394272785,11.7211,2515.2,2515.1,3.97598505]
[1750394273066,18.1801,2515.2,2515.1,3.97598505]
[1750394273625,11.662,2515.2,2515.1,3.97598505]
[1750394273794,18.121,2515.2,2515.1,3.97598505]
[1750394274201,18.1801,2515.2,2515.1,3.97598505]
[1750394276326,11.662,2515.2,2515.1,4.77119443]
[1750394276626,18.1791,2515.2,2515.1,4.77119443]
[1750394276820,18.1791,2515.2,2515.1,3.97598505]
[1750394282214,18.1781,2515.2,2515.1,3.97598505]
[1750394282612,16.457,2515.2,2515.1,3.97598505]
[1750394284844,24.31239954,2515.2,2515.1,3.97598505]
[1750394285043,0.0591,2515.1,2514.4,0.8117]
[1750394285216,0.0591,2515.1,2514.1,3.97751418]
[1750394285217,0.0591,2514.4,2514.3,3.97725012]
[1750394285418,6.5151,2514.4,2514.3,3.97725012]
[1750394285612,6.456,2514.4,2514.3,3.97725012]
[1750394286453,1.662,2514.5,2514.4,4.80309195]
[1750394286751,8.119,2514.5,2514.4,4.89935877]
[1750394287053,8.119,2514.5,2514.4,4.85959195]
[1750394288014,8.119,2514.5,2514.4,4.80309195]
[1750394290074,8.119,2514.5,2514.4,6.20382759]
[1750394290277,8.119,2514.5,2514.4,6.26032759]
[1750394291279,8.119,2514.5,2514.4,6.22055974]
[1750394291978,6.457,2514.5,2514.4,6.22055974]
[1750394293957,6.5161,2514.5,2514.4,3.97709195]
[1750394295698,10.8083,2514.7,2514.6,3.97677563]
[1750394295699,0.8083,2514.7,2514.6,3.97677563]
[1750394295857,8.9854,2514.7,2514.6,3.97677563]
[1750394297000,18.9854,2514.7,2514.6,3.97677563]
[1750394297900,25.95709954,2514.7,2514.6,3.97677563]
[1750394298198,28.9232719,2514.7,2514.6,3.97677563]
[1750394298903,28.92326756,2514.7,2514.6,3.97677563]
[1750394299064,26.32755761,2514.7,2514.6,3.97677563]
[1750394299266,26.32755692,2514.7,2514.6,3.97677563]
[1750394299596,12.89985738,2514.7,2514.6,3.97677563]
[1750394299818,18.54760515,2514.7,2514.6,3.97677563]
[1750394300259,12.03251256,2514.7,2514.6,3.97677563]
[1750394300462,18.48851256,2514.7,2514.6,3.97677563]
[1750394300681,18.118,2514.7,2514.6,3.97677563]
[1750394300887,18.48851317,2514.7,2514.6,3.97677563]
[1750394301722,18.5476655,2514.7,2514.6,3.97677563]
[1750394302711,20.42052648,2514.7,2513.7,3.97819006]
[1750394302909,8.12747947,2514.6,2514.5,3.97693378]
[1750394303072,8.18607947,2514.6,2514.5,3.97693378]
[1750394303270,8.18605713,2514.6,2514.5,3.97693378]
[1750394303867,8.1860669,2514.6,2514.5,3.97693378]
[1750394304711,1.21436736,2514.6,2514.5,3.97693378]
[1750394305026,0.37060181,2514.6,2514.5,3.97693378]
[1750394305230,18.118,2514.7,2514.6,3.97677563]
[1750394305428,18.48860292,2514.7,2514.6,3.97677563]
[1750394305738,18.54720292,2514.7,2514.6,3.97677563]
[1750394306231,18.1766,2514.7,2514.6,3.97677563]
[1750394306382,18.54718438,2514.7,2514.6,3.97677563]
[1750394306682,18.54718543,2514.7,2514.6,3.97677563]
[1750394306882,18.54718424,2514.7,2514.6,3.97677563]
[1750394308134,18.54723061,2514.7,2514.6,3.97677563]
[1750394308635,18.5472285,2514.7,2514.6,3.97677563]
[1750394309644,18.1766,2514.7,2514.6,3.97677563]
[1750394309803,18.54730407,2514.7,2514.6,3.97677563]
[1750394310240,18.54731154,2514.7,2514.6,3.97677563]
[1750394311145,18.1766,2514.7,2514.6,3.97677563]
[1750394311344,18.547324,2514.7,2514.6,3.97677563]
[1750394311848,0.0586,2514.6,2514.5,3.976807]
[1750394312005,0.429324,2514.6,2514.5,3.976807]
[1750394312206,7.40102354,2514.6,2514.5,3.976807]
[1750394312603,0.0586,2514.4,2514.3,3.97725012]
[1750394312849,13.48629954,2514.4,2514.3,3.97725012]
[1750394313014,13.85715285,2514.4,2514.3,3.97725012]
[1750394314048,13.85714979,2514.4,2514.3,3.97725012]
[1750394314251,13.85714953,2514.4,2514.3,3.97725012]
[1750394314607,15.32327448,2514.4,2514.3,3.97725012]
[1750394315350,15.32356227,2514.4,2514.3,3.97725012]
[1750394315850,15.26496227,2514.4,2514.0,3.97767065]
[1750394316153,0.37113778,2514.3,2513.8,0.8253]
[1750394316353,8.54673778,2514.2,2514.1,3.97756652]
[1750394316856,8.54672231,2514.2,2514.1,3.97756652]
[1750394317352,16.33082185,2514.2,2514.1,3.97756652]
[1750394318052,9.35912231,2514.2,2514.1,3.97756652]
[1750394318250,8.54653504,2514.2,2514.1,3.97756652]
[1750394319264,8.54652377,2514.2,2514.1,3.97756652]
[1750394319678,8.54651609,2514.2,2514.1,3.97756652]
[1750394320793,9.30011609,2514.2,2514.1,3.97756652]
[1750394320987,8.9292,2514.2,2514.1,3.97756652]
[1750394321166,9.29992174,2514.2,2514.1,3.97756652]
[1750394321588,9.29992171,2514.2,2514.1,3.97756652]
[1750394321963,8.9292,2514.2,2514.1,3.97756652]
[1750394322170,0.0586,2514.1,2514.0,3.97760388]
[1750394322482,17.80311025,2514.2,2514.1,3.97756652]
[1750394322483,15.84229954,2514.2,2514.1,3.97756652]
[1750394322681,16.27161304,2514.2,2514.1,3.97756652]
[1750394323657,16.27146338,2514.2,2514.1,3.97756652]
[1750394324568,16.27144544,2514.2,2514.1,3.97756652]
[1750394325292,15.90089954,2514.2,2514.1,3.97756652]
[1750394325498,16.27144268,2514.2,2514.1,3.97756652]
[1750394326304,16.27136712,2514.2,2514.1,3.97756652]
[1750394326472,16.27136725,2514.2,2514.1,3.97756652]
[1750394328279,16.27138423,2514.2,2514.1,3.97756652]
[1750394329901,16.27138088,2514.2,2514.1,3.97756652]
[1750394330598,9.29968134,2514.2,2514.1,3.97756652]
[1750394331012,9.29971346,2514.2,2514.1,3.97756652]
[1750394332995,9.29973134,2514.2,2514.1,3.97756652]
[1750394333321,9.29972777,2514.2,2514.1,3.97756652]
[1750394334031,9.29972422,2514.2,2514.1,3.97756652]
[1750394334330,9.29972372,2514.2,2514.1,3.97756652]
[1750394334838,9.29972402,2514.2,2514.1,3.97756652]
[1750394335640,9.29973391,2514.2,2514.1,3.97756652]
[1750394336034,9.29977936,2514.2,2514.1,3.97756652]
[1750394336537,9.29977939,2514.2,2514.1,3.97756652]
[1750394336737,9.29977926,2514.2,2514.1,3.97756652]
[1750394336938,9.29977928,2514.2,2514.1,3.97756652]
[1750394337237,8.54617943,2514.2,2514.1,3.97756652]
[1750394337699,8.48757943,2514.2,2514.1,3.97756652]
[1750394338033,8.48760077,2514.2,2514.1,3.97756652]
[1750394338234,10.0,2514.3,2514.2,3.97740832]
[1750394338535,18.48560051,2514.3,2514.2,3.97740832]
[1750394338696,18.54760051,2514.3,2514.2,3.97740832]
[1750394339533,18.177,2514.3,2514.2,3.97740832]
[1750394339835,0.062,2514.2,2514.1,3.97756652]
[1750394340041,7.40443406,2514.2,2514.1,3.97756652]
[1750394340614,7.03369954,2514.2,2514.1,3.97756652]
[1750394340820,7.40457571,2514.2,2514.1,3.97756652]
[1750394341116,7.40455802,2514.2,2514.1,3.97756652]
[1750394342454,10.21409509,2514.2,2514.1,3.97756652]
[1750394343046,10.21426088,2514.2,2514.1,3.97756652]
[1750394343399,10.21425986,2514.2,2514.1,3.97756652]
[1750394343856,0.8168,2514.1,2513.8,3.97793109]
[1750394344124,10.0,2513.9,2513.8,3.97793109]
[1750394344338,10.37103027,2513.9,2513.8,3.97793109]
[1750394345261,10.37100445,2513.9,2513.8,3.97793109]
[1750394347069,10.37099829,2513.9,2513.8,3.97793109]
[1750394347584,10.43299829,2513.9,2513.8,3.97793109]
[1750394347768,10.062,2513.9,2513.8,3.97793109]
[1750394348148,10.43296884,2513.9,2513.8,3.97793109]
[1750394349673,10.43290981,2513.9,2513.8,3.97793109]
[1750394352664,10.43275114,2513.9,2513.7,3.97813282]
[1750394352867,6.88775114,2513.8,2513.7,3.97813282]
[1750394353037,6.88775114,2513.8,2513.6,3.97827099]
[1750394353038,0.062,2513.7,2513.6,3.97827099]
[1750394353241,0.43275114,2513.7,2513.6,3.97827099]
[1750394353668,0.062,2513.6,2513.5,7.47865536]
[1750394353884,0.062,2513.5,2513.4,3.9786107]
[1750394354089,0.062,2513.5,2513.1,0.8241]
[1750394354090,2.03065698,2513.5,2513.3,3.97882846]
[1750394354391,6.518,2513.4,2513.3,3.97882846]
[1750394354597,6.82663294,2513.4,2513.2,3.97893618]
[1750394354800,0.062,2513.3,2513.2,3.97893618]
[1750394355182,0.43262755,2513.3,2513.2,3.97899092]
[1750394355562,0.43262261,2513.3,2513.2,3.97899092]
[1750394355763,0.062,2513.3,2513.2,3.97899092]
[1750394355964,0.062,2513.3,2513.0,3.97929408]
[1750394356266,6.518,2513.2,2513.1,3.97907099]
[1750394356765,0.062,2513.1,2513.0,3.97920681]
[1750394357766,6.518,2513.2,2513.1,3.97914925]
[1750394359409,10.0,2513.3,2513.2,3.97899092]
[1750394359606,18.117,2513.3,2513.2,3.97899092]
[1750394359768,18.179,2513.3,2513.2,3.97899092]
[1750394360279,10.0,2513.3,2513.2,3.97899092]
[1750394360485,18.117,2513.3,2513.2,3.97899092]
[1750394360680,8.117,2513.3,2513.2,4.03629092]
[1750394361002,10.062,2513.8,2513.7,3.97819946]
[1750394361202,18.54877927,2513.8,2513.7,3.97819946]
[1750394361565,18.48677927,2513.8,2513.7,3.97819946]
[1750394361770,18.54877927,2513.8,2513.7,3.97819946]
[1750394362101,21.17792715,2513.8,2513.7,3.97819946]
[1750394362273,21.17792715,2513.8,2513.6,3.97832528]
[1750394362274,20.80814788,2513.8,2513.6,3.97832528]
[1750394362473,0.0606,2513.7,2513.6,3.97832528]
[1750394362772,0.43032917,2513.7,2513.6,3.97832528]
[1750394362969,0.43032783,2513.7,2513.6,3.97832528]
[1750394363170,10.03102894,2513.7,2513.5,3.97844992]
[1750394363370,16.5176,2513.6,2513.5,3.97844992]
[1750394363906,16.88732948,2513.6,2513.5,3.97844992]
[1750394364102,16.5176,2513.6,2513.5,3.97844992]
[1750394364306,0.0606,2513.4,2513.3,3.9787545]
[1750394364506,16.5186,2513.4,2513.3,3.9787545]
[1750394365019,16.88828261,2513.4,2513.3,3.9787545]
[1750394365172,16.88830042,2513.4,2513.3,3.9787545]
[1750394365672,16.88829919,2513.4,2513.3,3.9787545]
[1750394366383,16.82769919,2513.4,2513.3,3.9787545]
[1750394366710,16.458,2513.4,2513.3,3.9787545]
[1750394367597,1.661,2513.5,2513.3,4.7895545]
[1750394367788,6.458,2513.4,2513.3,4.7895545]
[1750394367989,10.0606,2513.8,2513.3,4.7895545]
[1750394367990,10.0606,2513.8,2513.7,3.97819946]
[1750394368301,18.49078624,2513.8,2513.7,3.97819946]
[1750394368690,18.49078697,2513.8,2513.7,3.97819946]
[1750394368914,18.4907872,2513.8,2513.7,3.97819946]
[1750394369710,18.121,2513.8,2513.7,3.97819946]
[1750394369911,18.55157543,2513.8,2513.7,3.97819946]
[1750394370831,18.55157543,2513.8,2513.6,3.97826888]
[1750394371045,0.43062275,2513.7,2513.6,3.97826888]
[1750394371547,0.43062218,2513.7,2513.6,3.97826888]
[1750394371704,17.40232172,2513.7,2513.6,3.97826888]
[1750394371904,17.40232582,2513.7,2513.6,3.97826888]
[1750394372450,17.34185688,2513.7,2513.6,3.97826888]
[1750394372602,10.37015734,2513.7,2513.6,3.97826888]
[1750394373047,10.0,2513.7,2513.6,3.97826888]
[1750394373235,10.37019424,2513.7,2513.6,3.97826888]
[1750394373655,10.37019413,2513.7,2513.6,3.97826888]
[1750394373839,16.458,2513.7,2513.6,3.97826888]
[1750394374152,16.82818241,2513.7,2513.6,3.97826888]
[1750394374446,16.82818535,2513.7,2513.6,3.97826888]
[1750394375050,16.458,2513.7,2513.6,3.97826888]
[1750394375338,16.82821382,2513.7,2513.6,3.97826888]
[1750394375700,16.82821628,2513.7,2513.6,3.97826888]
[1750394376055,16.82825914,2513.7,2513.6,3.97826888]
[1750394376719,16.458,2513.7,2513.6,3.97826888]
[1750394376921,16.82825907,2513.7,2513.6,3.97826888]
[1750394378523,16.82832197,2513.7,2513.6,3.97826888]
[1750394379837,16.82843367,2513.7,2513.6,3.97826888]
[1750394380334,16.88903367,2513.7,2513.6,3.97826888]
[1750394380643,16.88898414,2513.7,2513.6,3.97826888]
[1750394381463,16.88894708,2513.7,2513.6,3.97826888]
[1750394381746,16.88909214,2513.7,2513.6,3.97826888]
[1750394381930,16.88911734,2513.7,2513.6,3.97826888]
[1750394382130,16.82851734,2513.7,2513.6,3.97826888]
[1750394382576,16.458,2513.7,2513.6,3.97826888]
[1750394382789,16.82852106,2513.7,2513.6,3.97826888]
[1750394383081,16.82851921,2513.7,2513.6,3.97826888]
[1750394383288,16.82851908,2513.7,2513.6,3.97826888]
[1750394384186,10.0,2513.6,2513.5,3.9784481]
[1750394384474,10.43127913,2513.6,2513.5,3.9784481]
[1750394385250,10.43129283,2513.6,2513.5,3.9784481]
[1750394385453,10.43128905,2513.6,2513.5,3.9784481]
[1750394386481,13.06134791,2513.6,2513.5,3.9784481]
[1750394387471,10.43128905,2513.6,2513.5,3.9784481]
[1750394388383,10.43138549,2513.6,2513.5,3.9784481]
[1750394389972,10.0606,2513.6,2513.5,3.9784481]
[1750394390173,10.43150807,2513.6,2513.5,3.9784481]
[1750394390605,10.43150753,2513.6,2513.5,3.9784481]
[1750394392021,10.0606,2513.6,2513.5,3.9784481]
[1750394392188,10.43150745,2513.6,2513.5,3.9784481]
[1750394392376,10.43150583,2513.6,2513.5,3.9784481]
[1750394392904,10.43150459,2513.6,2513.5,3.9784481]
[1750394394114,10.0606,2513.6,2513.5,3.9784481]
[1750394394622,10.43151433,2513.6,2513.5,3.9784481]
[1750394397320,10.43162361,2513.6,2513.5,3.9784481]
[1750394399016,10.43166277,2513.6,2513.5,3.9784481]
[1750394400006,10.43166863,2513.6,2513.5,3.9784481]
[1750394400209,0.7986,2513.9,2513.4,3.97867277]
[1750394400383,8.48711011,2513.8,2513.7,3.97819946]
[1750394400712,25.51600965,2513.8,2513.7,3.97819946]
[1750394400917,26.34210965,2513.8,2513.7,3.97819946]
[1750394401286,26.34210965,2513.8,2513.5,3.97843356]
[1750394401287,10.0,2513.7,2513.6,3.97826516]
[1750394401491,10.42829328,2513.7,2513.6,3.97826516]
[1750394402920,0.42829328,2513.7,2513.5,3.97837473]
[1750394403230,13.85598888,2513.6,2513.5,3.97837473]
[1750394405082,13.48489954,2513.6,2513.5,3.97837473]
[1750394405281,13.85598959,2513.6,2513.5,3.97837473]
[1750394405724,6.88429005,2513.6,2513.5,3.97837473]
[1750394406025,6.88429104,2513.6,2513.5,3.97837473]
[1750394406516,6.88429168,2513.6,2513.5,3.97837473]
[1750394407205,6.82709168,2513.6,2513.5,3.97837473]
[1750394407982,6.82719273,2513.6,2513.5,3.97837473]
[1750394408615,6.82719326,2513.6,2513.5,3.97837473]
[1750394408942,6.456,2513.6,2513.5,3.97837473]
[1750394409218,6.8271989,2513.6,2513.5,3.97837473]
[1750394409823,8.4871989,2513.6,2513.5,3.97837473]
[1750394410122,8.116,2513.6,2513.5,3.97837473]
[1750394410329,8.48719415,2513.6,2513.5,3.97837473]
[1750394411129,8.54439415,2513.6,2513.5,3.97837473]
[1750394411430,8.54437391,2513.6,2513.5,3.97837473]
[1750394411839,8.54437628,2513.6,2513.5,3.97837473]
[1750394411996,8.54437518,2513.6,2513.5,3.97837473]
[1750394412841,8.54437504,2513.6,2513.5,3.97837473]
[1750394413341,8.54437491,2513.6,2513.5,3.97837473]
[1750394414138,8.1732,2513.6,2513.5,3.97837473]
[1750394414337,8.54437415,2513.6,2513.5,3.97837473]
[1750394414639,8.54436985,2513.6,2513.5,3.97837473]
[1750394415596,0.0572,2513.5,2513.3,3.97876177]
[1750394415802,23.85506939,2513.4,2513.3,3.97876177]
[1750394417215,23.85502982,2513.4,2513.3,3.97876177]
[1750394419651,23.85506275,2513.4,2513.3,3.97876177]
[1750394420052,23.85506354,2513.4,2513.3,3.97876177]
[1750394420350,23.48389954,2513.4,2513.3,3.97876177]
[1750394420550,23.85506307,2513.4,2513.3,3.97876177]
[1750394420957,10.0,2513.3,2513.2,3.97891266]
[1750394421260,10.42789061,2513.3,2513.2,3.97891266]
[1750394421821,10.42789051,2513.3,2513.2,3.97891266]
[1750394422782,10.0572,2513.3,2513.2,3.97891266]
[1750394423061,10.42788761,2513.3,2513.2,3.97891266]
[1750394424357,10.37068761,2513.3,2513.2,3.97891266]
[1750394424570,10.37068377,2513.3,2513.2,3.97891266]
[1750394425693,10.0,2513.3,2513.2,3.97891266]
[1750394425854,10.37075642,2513.3,2513.2,3.97891266]
[1750394426554,10.37075609,2513.3,2513.2,3.97891266]
[1750394428184,10.37115682,2513.3,2513.2,3.97891266]
[1750394428790,10.37115665,2513.3,2513.2,3.97891266]
[1750394429285,10.37115409,2513.3,2513.2,3.97891266]
[1750394430087,10.0,2513.3,2513.2,3.97891266]
[1750394430590,10.37114445,2513.3,2513.2,3.97891266]
[1750394431513,10.0,2513.3,2513.2,3.97891266]
[1750394431689,10.37114543,2513.3,2513.2,3.97891266]
[1750394431889,10.43104543,2513.3,2513.2,3.97891266]
[1750394432408,12.89821993,2513.3,2513.2,3.97899092]
[1750394434399,10.43104543,2513.3,2513.2,3.97899092]
[1750394434563,10.0599,2513.3,2513.2,3.97899092]
[1750394434763,10.0,2513.3,2513.2,3.97899092]
[1750394434963,0.37100286,2513.3,2513.2,3.97899092]
[1750394435197,16.82500286,2513.3,2513.2,3.97899092]
[1750394435878,16.82501594,2513.3,2513.2,3.97899092]
[1750394436383,16.82501548,2513.3,2513.2,3.97899092]
[1750394436591,16.82501507,2513.3,2513.2,3.97899092]
[1750394436794,16.82501483,2513.3,2513.2,3.97899092]
[1750394437307,16.88491552,2513.3,2513.2,3.97899092]
[1750394437601,16.88491565,2513.3,2513.2,3.97899092]
[1750394438101,16.88491529,2513.3,2513.2,3.97899092]
[1750394438422,16.88492367,2513.3,2513.2,3.97899092]
[1750394440332,16.88492216,2513.3,2513.2,3.97899092]
[1750394441094,16.82502216,2513.3,2513.2,3.97899092]
[1750394442118,18.113,2513.3,2513.2,3.97899092]
[1750394442422,18.48402158,2513.3,2513.2,3.97899092]
[1750394442984,11.659,2513.3,2513.2,3.97899092]
[1750394443218,18.48402139,2513.3,2513.2,4.04089092]
[1750394443806,18.48402582,2513.3,2513.2,4.04089092]
[1750394444507,17.49661087,2513.3,2513.2,4.04089092]
[1750394444819,8.48402582,2513.3,2513.2,4.04089092]
[1750394445021,8.48402582,2513.3,2513.2,4.85976302]
[1750394445022,2.03002582,2513.3,2513.2,4.85976302]
[1750394445320,0.7603,2513.7,2513.2,4.85976302]
[1750394445321,1.659,2513.7,2513.6,4.73305773]
[1750394445524,2.03004055,2513.7,2513.6,4.73305773]
[1750394445727,8.48304055,2513.7,2513.6,4.79495773]
[1750394446018,8.48306752,2513.7,2513.6,4.79495773]
[1750394446423,8.48306752,2513.7,2513.6,4.73305773]
[1750394446986,8.112,2513.7,2513.6,4.73305773]
[1750394451527,1.659,2513.7,2513.6,4.73305773]
[1750394451831,8.112,2513.7,2513.6,5.66611133]
[1750394452126,10.0599,2514.2,2514.1,3.97756652]